bitfinex/quotes_SOLUSD_20251224
["timestamp","ask_amount","ask_price","bid_price","bid_amount"]
[1766599968615,8.860082,121.95,121.92,2.86128295]
[1766599968815,0.66,121.95,121.92,2.86128295]
[1766599970929,8.86025037,121.95,121.91,11.77396666]
[1766599971913,0.66,121.95,121.91,0.71]
[1766599972112,0.66,121.95,121.91,3.57128295]
[1766599972840,0.66,121.95,121.9,0.71]
[1766599973051,0.66,121.95,121.9,3.57128295]
[1766599973240,0.66,121.93,121.89,10.43767296]
[1766599973409,0.66,121.91,121.88,0.71]
[1766599974009,0.66,121.9,121.86,3.57128295]
[1766599974215,0.66,121.9,121.86,11.14767296]
[1766599975130,0.66,121.9,121.87,10.43767296]
[1766599975339,0.66,121.89,121.87,10.43767296]
[1766599978633,8.20311831,121.91,121.87,13.29895591]
[1766599978820,0.66,121.9,121.87,22.21429466]
[1766599979537,0.66,121.9,121.87,14.00895591]
[1766599979834,0.66,121.92,121.88,3.57128295]
[1766599980027,0.66,121.92,121.89,2.86128295]
[1766599980936,30.93907816,121.95,121.9,3.57128295]
[1766599980937,8.86106022,121.94,121.9,3.57128295]
[1766599981119,0.66,121.93,121.9,3.57128295]
[1766599981320,0.66,121.93,121.9,0.71]
[1766599981626,10.43767296,121.98,121.9,0.71]
[1766599981627,2.86128295,121.99,121.94,0.71]
[1766599981829,0.66,121.98,121.94,3.57128295]
[1766599982228,0.66,121.98,121.93,14.00895591]
[1766599983045,8.85831613,121.98,121.94,3.57128295]
[1766599983335,0.66,121.98,121.94,3.57128295]
[1766599983535,0.66,122.0,121.97,3.57128295]
[1766599983838,0.66,122.0,121.97,14.00895591]
[1766599984218,0.2,122.01,121.97,14.00895591]
[1766599984219,0.86,122.01,121.97,14.00895591]
[1766599984837,0.2,122.01,121.98,3.57128295]
[1766599985020,0.2,122.01,121.98,11.76890325]
[1766599986939,0.2,122.01,121.98,11.05890325]
[1766599987238,11.25628787,122.03,121.98,11.05890325]
[1766599987239,0.86,122.03,121.99,3.57128295]
[1766599987551,0.86,122.03,122.0,2.86128295]
[1766599987746,0.86,122.03,122.0,3.37128295]
[1766599988530,0.2,122.03,122.01,3.37128295]
[1766599988922,9.06376817,122.05,122.0,10.43767296]
[1766599988923,0.87,122.05,122.02,3.37128295]
[1766599989139,0.87,122.05,122.02,11.56646796]
[1766599990053,0.2,122.05,122.02,11.05646796]
[1766599990241,0.67,122.07,122.03,3.37128295]
[1766599990445,0.67,122.07,122.03,3.17128295]
[1766599991248,0.67,122.07,122.0,37.87629073]
[1766599991249,0.67,122.06,122.01,11.36713221]
[1766599991423,0.67,122.05,122.01,11.36713221]
[1766599992127,3.53128295,122.05,122.01,0.31]
[1766599992332,0.67,122.05,122.01,3.17128295]
[1766599992652,0.67,122.05,122.02,2.86128295]
[1766599993135,0.67,122.05,122.02,11.05661233]
[1766599993330,0.67,122.07,122.04,2.86128295]
[1766599993735,8.86204758,122.07,122.03,3.17128295]
[1766599994428,8.86204758,122.07,122.03,0.31]
[1766599995050,8.86204758,122.07,122.01,0.31]
[1766599995051,2.86128295,122.06,122.01,0.31]
[1766599995242,0.67,122.04,122.01,10.43767296]
[1766599996955,0.67,122.04,122.01,10.74767296]
[1766599997638,8.86409321,122.04,122.01,10.74767296]
[1766599998346,0.67,122.04,122.01,18.94367207]
[1766600000757,0.67,122.04,122.01,10.74767296]
[1766600001458,0.67,122.07,122.01,18.63366455]
[1766600001757,0.67,122.07,122.01,20.46016599]
[1766600001758,0.67,122.06,122.01,20.46016599]
[1766600002059,0.67,122.05,122.01,20.77016599]
[1766600003042,0.67,122.05,122.01,10.43767296]
[1766600003043,0.67,122.04,122.01,10.43767296]
[1766600004954,8.19233337,122.07,122.03,10.43767296]
[1766600005158,0.67,122.06,122.03,1.82650144]
[1766600005456,0.67,122.06,122.02,12.5741744]
[1766600005632,0.67,122.06,122.02,10.74767296]
[1766600006659,0.67,122.06,122.02,18.63303912]
[1766600007055,0.67,122.05,122.02,10.43767296]
[1766600007358,0.67,122.03,121.98,0.31]
[1766600007535,0.67,122.03,121.99,2.13650144]
[1766600007735,0.67,122.03,122.0,10.43767296]
[1766600008157,0.67,122.03,122.0,18.63410189]
[1766600010166,0.67,122.03,122.0,10.43767296]
[1766600010660,0.67,122.03,121.99,8.5072642]
[1766600010859,0.67,122.02,121.98,8.19796106]
[1766600011059,0.67,122.01,121.98,8.19796106]
[1766600013766,0.67,122.03,121.98,23.15796106]
[1766600013948,0.67,122.05,122.01,0.31]
[1766600015049,0.67,122.05,122.01,1.82650144]
[1766600015252,0.67,122.05,122.01,2.13650144]
[1766600015448,8.19289395,122.06,122.0,18.63439427]
[1766600015449,0.67,122.06,122.02,2.13650144]
[1766600015650,0.67,122.06,122.02,0.31]
[1766600016846,0.67,122.06,122.02,8.50534513]
[1766600018058,0.68,122.05,122.02,8.19528983]
[1766600022080,0.68,122.05,122.01,10.33225571]
[1766600022369,0.68,122.05,122.01,8.50575427]
[1766600025177,8.87341929,122.05,122.01,8.50575427]
[1766600026071,0.68,122.05,122.01,10.33225571]
[1766600027353,0.68,122.05,122.01,8.50575427]
[1766600027655,0.68,122.05,122.01,10.33225571]
[1766600028157,0.68,122.05,122.02,8.50510591]
[1766600029590,8.87255828,122.07,122.03,0.31]
[1766600029876,0.68,122.06,122.03,0.31]
[1766600030456,0.68,122.06,122.03,8.50452921]
[1766600032758,0.68,122.06,122.03,8.19452921]
[1766600033488,0.68,122.06,122.02,8.50507411]
[1766600033489,8.19276321,122.06,122.02,8.50507411]
[1766600033775,0.68,122.05,122.02,8.50507411]
[1766600035984,0.68,122.05,122.02,0.31]
[1766600037290,0.68,122.05,122.02,8.50530709]
[1766600037964,0.68,122.03,122.0,81.44406143]
[1766600038462,0.68,122.03,122.01,8.19571466]
[1766600038854,0.68,122.04,122.01,8.19571466]
[1766600040463,55.66731518,122.1,122.01,10.0222161]
[1766600040681,0.68,122.08,122.03,12.5741744]
[1766600040964,0.68,122.07,122.03,10.74767296]
[1766600041687,28.66737651,122.09,122.03,10.43767296]
[1766600041688,1.82650144,122.06,122.03,10.43767296]
[1766600041887,0.68,122.05,122.03,10.43767296]
[1766600042091,28.66737651,122.09,122.0,84.8176979]
[1766600042092,0.68,122.03,122.0,10.43767296]
[1766600042292,0.68,122.02,122.01,10.43767296]
[1766600044193,0.68,122.01,121.97,51.3891643]
[1766600044392,0.68,122.01,121.97,59.58726347]
[1766600044691,0.68,122.01,121.98,18.6356945]
[1766600046697,0.68,122.01,121.98,20.46219594]
[1766600046902,0.68,122.01,121.98,18.6356945]
[1766600050408,0.68,122.01,121.98,18.9456945]
[1766600052405,0.68,122.01,121.98,18.6356945]
[1766600053702,10.02151328,122.03,121.98,20.46219594]
[1766600053703,8.19501184,122.03,121.98,20.46219594]
[1766600053904,0.67,122.03,122.0,8.19672131]
[1766600054108,0.67,122.03,122.0,8.50672131]
[1766600055911,0.67,122.03,121.99,8.19739322]
[1766600056107,0.67,122.03,121.99,8.50739322]
[1766600057011,0.67,122.03,121.99,10.33389466]
[1766600057410,0.67,122.03,121.99,8.50739322]
[1766600058016,0.67,122.02,121.98,18.94519851]
[1766600058215,0.67,122.02,121.99,8.19733653]
[1766600059412,0.67,122.03,121.99,10.33383797]
[1766600059612,0.67,122.03,122.0,0.31]
[1766600061499,0.67,122.03,122.0,8.19665978]
[1766600064009,0.67,122.03,121.99,23.46706357]
[1766600066712,0.67,122.02,121.99,23.46706357]
[1766600066915,0.67,122.02,121.98,81.13542017]
[1766600067113,0.67,122.02,121.99,8.50714576]
[1766600070936,0.67,122.03,122.0,0.31]
[1766600071327,0.67,122.03,122.0,8.50619963]
[1766600076626,0.67,122.05,122.01,0.31]
[1766600077134,0.72,122.04,122.01,0.31]
[1766600080051,0.72,122.04,122.01,8.50595018]
[1766600080338,8.19287909,122.06,122.01,21.48785871]
[1766600080537,0.71,122.05,122.02,0.31]
[1766600080831,0.71,122.05,122.01,21.79785871]
[1766600082437,23.33481932,122.07,122.01,21.79785871]
[1766600082438,0.71,122.07,122.01,54.0837469]
[1766600082626,0.71,122.07,122.03,0.31]
[1766600083424,11.04648582,122.07,122.01,25.39767296]
[1766600083634,0.71,122.03,121.99,8.19706091]
[1766600083831,0.71,122.03,121.99,8.50706091]
[1766600084140,0.71,122.03,122.0,8.19669777]
[1766600086144,0.71,122.03,121.99,18.94472318]
[1766600086541,8.19479882,122.03,121.99,18.94472318]
[1766600086746,0.71,122.02,121.99,10.43767296]
[1766600088447,0.71,122.02,121.99,18.6350309]
[1766600091543,0.71,122.02,121.99,18.9450309]
[1766600091850,0.71,122.05,122.0,2.85423557]
[1766600092146,0.71,122.05,122.01,0.31]
[1766600092530,0.71,122.03,122.0,0.5]
[1766600092850,0.71,122.03,121.99,10.43767296]
[1766600093551,0.71,122.03,121.99,18.63494797]
[1766600094237,0.71,122.02,121.99,18.63494797]
[1766600101040,0.71,122.02,121.99,10.43767296]
[1766600101234,0.71,122.01,121.97,98.6191643]
[1766600101453,0.71,122.01,121.97,106.81773897]
[1766600102038,8.90613202,122.01,121.97,106.81773897]
[1766600102238,0.71,122.0,121.97,106.81773897]
[1766600102536,0.71,122.0,121.97,44.31773897]
[1766600104459,0.71,122.0,121.97,44.62773897]
[1766600104855,0.71,122.0,121.97,47.48197454]
[1766600105151,0.71,122.02,121.98,2.85423557]
[1766600105357,0.71,122.02,121.98,0.5]
[1766600105750,0.71,122.02,121.97,65.12458245]
[1766600106756,0.71,122.01,121.97,65.12458245]
[1766600107158,0.71,122.01,121.97,44.62773897]
[1766600107348,0.71,122.01,121.97,44.31773897]
[1766600109857,11.05047648,122.01,121.97,44.31773897]
[1766600110046,0.69,122.0,121.97,44.31773897]
[1766600111460,0.69,122.0,121.97,8.19857467]
[1766600111758,0.69,122.0,121.97,8.50857467]
[1766600114265,0.69,122.01,121.97,8.50857467]
[1766600114657,0.69,122.04,122.01,0.31]
[1766600114958,0.69,122.05,122.01,0.31]
[1766600116063,0.69,122.05,122.02,8.1953778]
[1766600116562,11.04635975,122.07,122.02,8.5053778]
[1766600116869,0.69,122.06,122.02,8.5053778]
[1766600118162,0.69,122.06,122.02,11.35961337]
[1766600118353,0.69,122.06,122.02,8.5053778]
[1766600119848,0.69,122.05,122.02,8.5053778]
[1766600121764,0.69,122.05,122.02,11.35961337]
[1766600121966,0.69,122.05,122.02,10.33143903]
[1766600122482,0.69,122.05,122.0,73.75734509]
[1766600122672,0.69,122.05,122.01,8.50562094]
[1766600122984,0.69,122.05,122.01,10.33168217]
[1766600123379,0.69,122.05,122.02,8.19527218]
[1766600125781,0.69,122.05,122.02,8.50527218]
[1766600128277,0.69,122.05,122.02,10.33133341]
[1766600128990,0.69,122.05,122.02,8.19527218]
[1766600132901,0.69,122.05,122.02,8.50527218]
[1766600136298,0.69,122.05,122.01,8.19574412]
[1766600136480,0.69,122.05,122.01,10.33180535]
[1766600137405,0.69,122.05,122.02,8.19524422]
[1766600137600,0.69,122.05,122.02,8.50524422]
[1766600138893,0.71,122.04,122.01,8.19600704]
[1766600139099,0.71,122.04,122.0,93.42888459]
[1766600139100,8.19346796,122.05,122.0,62.5]
[1766600139400,0.71,122.03,121.99,0.31]
[1766600139803,0.71,122.03,121.99,2.13606123]
[1766600140310,0.71,122.03,121.99,10.33309189]
[1766600141310,0.71,122.03,121.99,8.50703066]
[1766600143013,0.71,122.03,121.99,10.33309189]
[1766600145612,0.71,122.09,122.03,10.74767296]
[1766600145906,0.71,122.09,122.06,0.31]
[1766600146110,0.71,122.09,122.06,2.13606123]
[1766600146990,0.71,122.1,122.06,2.13606123]
[1766600147703,8.19009291,122.1,122.06,2.13606123]
[1766600147887,0.71,122.09,122.06,10.32874384]
[1766600148291,0.71,122.09,122.06,8.19268261]
[1766600148510,0.71,122.09,122.06,10.01874384]
[1766600150815,0.71,122.09,122.06,8.19268261]
[1766600151106,0.71,122.09,122.06,10.01874384]
[1766600151408,0.2,122.11,122.07,2.13606123]
[1766600151710,0.2,122.11,122.08,2.13606123]
[1766600151888,0.2,122.11,122.09,8.190679]
[1766600152219,0.2,122.11,122.09,10.01674023]
[1766600154514,0.2,122.11,122.09,10.32674023]
[1766600155013,0.2,122.11,122.1,1.82606123]
[1766600155407,0.2,122.11,122.09,10.01674023]
[1766600155909,0.2,122.11,122.09,10.32674023]
[1766600156216,8.38750135,122.14,122.1,1.82606123]
[1766600157611,8.38750135,122.14,122.1,10.01592987]
[1766600158018,0.71,122.13,122.1,10.01592987]
[1766600160319,0.71,122.13,122.09,10.67657191]
[1766600162828,0.71,122.13,122.1,1.82606123]
[1766600163031,0.2,122.18,122.13,0.66]
[1766600163192,0.71,122.21,122.13,0.66]
[1766600163193,0.71,122.21,122.17,12.26373419]
[1766600163391,0.71,122.21,122.18,0.66]
[1766600163595,0.71,122.21,122.19,1.82606123]
[1766600163798,0.2,122.23,122.2,0.66]
[1766600164111,0.2,122.23,122.21,1.82606123]
[1766600164311,0.71,122.25,122.22,1.82606123]
[1766600164502,0.2,122.26,122.23,12.92373419]
[1766600164817,0.71,122.23,122.19,17.44606123]
[1766600164994,0.71,122.23,122.2,1.82606123]
[1766600165400,0.71,122.23,122.2,10.00921665]
[1766600166097,0.71,122.25,122.21,1.82606123]
[1766600166312,0.71,122.25,122.21,0.66]
[1766600166531,0.71,122.24,122.21,0.66]
[1766600166844,0.71,122.24,122.21,10.66846725]
[1766600168142,0.71,122.24,122.21,2.48606123]
[1766600168350,0.71,122.24,122.21,0.66]
[1766600169034,0.66,122.23,122.19,10.43767296]
[1766600169852,0.66,122.22,122.17,23.12518944]
[1766600170018,0.66,122.22,122.17,36.08892363]
[1766600170443,0.66,122.22,122.18,1.82606123]
[1766600170934,0.66,122.22,122.17,34.2628624]
[1766600170935,0.66,122.21,122.17,25.37767296]
[1766600171139,0.66,122.2,122.17,25.37767296]
[1766600172226,0.66,122.2,122.09,128.06298358]
[1766600172227,0.66,122.19,122.12,0.7]
[1766600172431,0.66,122.17,122.13,8.88742429]
[1766600172742,0.66,122.16,122.13,0.7]
[1766600172921,0.66,122.16,122.13,10.43767296]
[1766600173116,0.66,122.16,122.12,25.65463]
[1766600173512,0.66,122.16,122.12,36.09230296]
[1766600173742,0.66,122.16,122.12,34.26624173]
[1766600173957,0.66,122.16,122.12,36.09230296]
[1766600174117,0.66,122.16,122.13,2.52606123]
[1766600176245,0.66,122.16,122.13,10.7135949]
[1766600176547,0.66,122.18,122.14,1.82606123]
[1766600176746,0.66,122.18,122.13,10.7135949]
[1766600177644,0.66,122.17,122.13,8.88753367]
[1766600177826,0.66,122.17,122.13,8.8878793]
[1766600180228,8.84532385,122.17,122.13,8.8878793]
[1766600180445,0.66,122.16,122.13,0.7]
[1766600181653,0.66,122.16,122.12,35.3921305]
[1766600181654,0.66,122.15,122.12,25.37767296]
[1766600182543,0.66,122.15,122.12,34.26632306]
[1766600183147,0.66,122.15,122.12,25.37767296]
[1766600183736,8.84673218,122.15,122.12,25.37767296]
[1766600184255,0.66,122.14,122.12,10.43767296]
[1766600186050,0.66,122.14,122.1,26.67898425]
[1766600186259,0.66,122.14,122.1,23.82974434]
[1766600187248,8.84733472,122.14,122.1,23.82974434]
[1766600187450,8.18733472,122.14,122.1,23.82974434]
[1766600187770,2.84923991,122.12,122.07,3.54923991]
[1766600188055,0.66,122.11,122.07,22.17857955]
[1766600188257,0.66,122.11,122.03,47.92021372]
[1766600188258,2.84923991,122.1,122.04,2.84923991]
[1766600188455,0.66,122.09,122.05,11.74232308]
[1766600188760,0.66,122.09,122.05,13.98691287]
[1766600189672,0.66,122.09,122.05,19.33091147]
[1766600189840,0.66,122.09,122.05,22.18015138]
[1766600190661,0.66,122.11,122.07,0.7]
[1766600190858,0.66,122.11,122.06,2.84923991]
[1766600191177,0.66,122.11,122.06,3.54923991]
[1766600192380,0.66,122.11,122.07,8.19202097]
[1766600192869,0.66,122.11,122.07,11.04126088]
[1766600193650,0.66,122.11,122.07,8.19202097]
[1766600194961,0.66,122.11,122.07,11.74126088]
[1766600195170,0.66,122.11,122.08,0.7]
[1766600196378,0.66,122.11,122.08,11.74047696]
[1766600197355,0.71,122.12,122.08,11.74047696]
[1766600198373,0.71,122.12,122.08,11.75047696]
[1766600198781,0.71,122.12,122.09,0.71]
[1766600199457,0.71,122.12,122.08,11.04047696]
[1766600199665,0.71,122.12,122.08,11.75047696]
[1766600200776,2.84923991,122.16,122.11,13.99691287]
[1766600200992,0.71,122.15,122.11,13.99691287]
[1766600201962,0.71,122.15,122.11,22.18615798]
[1766600202159,11.03471191,122.17,122.11,21.47615798]
[1766600202363,0.71,122.16,122.12,0.71]
[1766600202666,0.71,122.16,122.12,3.55923991]
[1766600203467,0.71,122.16,122.13,10.43767296]
[1766600203866,0.71,122.16,122.12,8.8985736]
[1766600205472,8.18643292,122.16,122.12,0.71]
[1766600205677,0.71,122.15,122.11,13.28691287]
[1766600205878,0.71,122.15,122.11,13.99691287]
[1766600206382,0.71,122.15,122.11,22.18585137]
[1766600215569,0.71,122.16,122.12,0.71]
[1766600215769,0.71,122.15,122.11,19.33661146]
[1766600216287,0.71,122.14,122.1,23.85986595]
[1766600216486,0.71,122.13,122.1,23.85986595]
[1766600217068,0.71,122.13,122.1,14.96]
[1766600218363,0.71,122.12,122.08,11.04030674]
[1766600218589,0.71,122.12,122.08,11.75030674]
[1766600218794,0.71,122.12,122.08,8.90106683]
[1766600218997,0.71,122.1,122.07,33.56948964]
[1766600219303,0.71,122.1,122.06,8.90256057]
[1766600220069,2.84923991,122.1,122.06,8.90256057]
[1766600220391,0.71,122.11,122.07,0.71]
[1766600220577,0.71,122.11,122.08,3.55923991]
[1766600221090,0.71,122.12,122.08,3.55923991]
[1766600222283,0.71,122.12,122.08,11.75015564]
[1766600223091,0.71,122.11,122.08,0.71]
[1766600223394,0.71,122.11,122.07,26.7112508]
[1766600223966,0.71,122.11,122.07,23.86201089]
[1766600227476,0.71,122.11,122.07,26.7112508]
[1766600228595,0.71,122.11,122.07,23.86201089]
[1766600228899,0.71,122.11,122.07,26.7112508]
[1766600229490,0.71,122.11,122.08,0.68]
[1766600229705,0.71,122.12,122.08,0.68]
[1766600230784,0.71,122.11,122.07,26.0012508]
[1766600231096,0.71,122.1,122.07,8.19201089]
[1766600231583,0.71,122.09,122.06,8.87244318]
[1766600231767,0.71,122.09,122.05,34.27078394]
[1766600234491,0.57733178,122.09,122.05,34.27078394]
[1766600235807,11.03999833,122.09,122.05,25.39767296]
[1766600236011,8.19075842,122.09,122.05,26.07767296]
[1766600236395,0.71,122.08,122.05,26.07767296]
[1766600237215,8.90035146,122.1,122.07,0.68]
[1766600237590,0.71,122.09,122.06,0.68]
[1766600238132,0.71,122.09,122.05,37.12025279]
[1766600240017,0.71,122.09,122.06,0.68]
[1766600242141,0.71,122.09,122.06,8.87263189]
[1766600242526,11.03892859,122.11,122.06,8.19263189]
[1766600242734,11.03892859,122.11,122.07,0.68]
[1766600242735,0.71,122.1,122.07,0.68]
[1766600244161,8.18897803,122.12,122.07,10.0170116]
[1766600244440,0.71,122.11,122.08,0.68]
[1766600249075,8.89936763,122.11,122.08,0.68]
[1766600250147,0.71,122.11,122.08,0.68]
[1766600250363,24.97331718,122.13,122.08,8.19116563]
[1766600250656,15.67,122.13,122.09,0.68]
[1766600251030,14.96,122.13,122.09,0.68]
[1766600251230,0.71,122.12,122.09,0.68]
[1766600251958,0.71,122.12,122.09,8.87063238]
[1766600252639,14.96,122.13,122.1,0.68]
[1766600252877,0.71,122.12,122.09,8.87063238]
[1766600260157,0.7,122.13,122.09,8.88063238]
[1766600260359,0.7,122.12,122.09,0.69]
[1766600262177,0.7,122.1,122.07,63.19]
[1766600262359,0.7,122.1,122.07,0.69]
[1766600263973,0.7,122.09,122.06,14.96]
[1766600264283,0.7,122.08,122.04,15.65]
[1766600264480,0.7,122.08,122.04,27.91268867]
[1766600264680,0.7,122.08,122.04,26.08767296]
[1766600264882,0.7,122.08,122.04,15.65]
[1766600265270,8.89158059,122.08,122.04,15.65]
[1766600265989,0.7,122.07,122.04,14.96]
[1766600266182,0.7,122.07,122.04,23.84403464]
[1766600266791,0.7,122.07,122.04,15.65]
[1766600268480,0.7,122.07,122.04,23.84392362]
[1766600268680,8.89158059,122.08,122.04,25.66893933]
[1766600270185,0.7,122.07,122.04,25.66893933]
[1766600271201,0.7,122.07,122.04,24.97893933]
[1766600271376,0.7,122.07,122.04,25.66893933]
[1766600272478,0.7,122.08,122.05,0.69]
[1766600273300,0.7,122.09,122.06,0.69]
[1766600274078,0.7,122.08,122.04,23.15392362]
[1766600274277,0.7,122.08,122.04,23.84392362]
[1766600276405,8.89145654,122.08,122.04,23.84392362]
[1766600277282,8.19145654,122.08,122.04,23.84392362]
[1766600277489,0.7,122.07,122.04,23.84392362]
[1766600278384,0.7,122.07,122.04,25.66893933]
[1766600279711,8.89101336,122.09,122.05,0.69]
[1766600279888,0.7,122.08,122.05,0.69]
[1766600280281,0.7,122.08,122.05,8.88330082]
[1766600280691,8.19101336,122.09,122.06,0.69]
[1766600280897,8.19001615,122.1,122.06,15.65]
[1766600281110,8.19001615,122.1,122.06,14.96]
[1766600281284,0.7,122.1,122.06,15.65]
[1766600281612,0.7,122.1,122.07,0.69]
[1766600282807,0.7,122.1,122.06,25.66716632]
[1766600286415,0.7,122.1,122.06,23.84215061]
[1766600286603,0.7,122.1,122.06,25.66716632]
[1766600288510,0.68,122.09,122.06,15.65]
[1766600288888,0.68,122.09,122.06,23.84266822]
[1766600289618,0.68,122.09,122.06,15.65]
[1766600290123,0.68,122.09,122.06,25.62763724]
[1766600290335,0.68,122.09,122.06,15.61]
[1766600290830,8.87073221,122.09,122.06,15.61]
[1766600291719,0.68,122.09,122.06,15.61]
[1766600293922,0.68,122.09,122.06,17.43501571]
[1766600295222,0.68,122.09,122.06,15.61]
[1766600298421,0.68,122.09,122.06,23.80259446]
[1766600301218,0.68,122.09,122.07,0.65]
[1766600301425,0.68,122.1,122.07,0.65]
[1766600303131,0.68,122.1,122.06,23.80259446]
[1766600304017,0.68,122.09,122.06,23.80259446]
[1766600306726,20.47200329,122.12,122.09,0.65]
[1766600306727,0.68,122.12,122.09,0.65]
[1766600306912,0.68,122.12,122.09,15.61]
[1766600307512,0.68,122.12,122.09,14.96]
[1766600310126,0.68,122.12,122.09,15.61]
[1766600310432,0.68,122.12,122.09,26.65210333]
[1766600313814,11.11767296,122.15,122.12,0.65]
[1766600314016,0.68,122.16,122.12,3.50175099]
[1766600314230,0.68,122.16,122.13,0.65]
[1766600314417,0.68,122.16,122.12,2.85175099]
[1766600314622,0.68,122.16,122.12,3.50175099]
[1766600314832,0.68,122.16,122.12,0.65]
[1766600315017,0.68,122.16,122.12,3.50175099]
[1766600315411,0.68,122.16,122.12,11.69018058]
[1766600315932,0.68,122.16,122.13,0.65]
[1766600316432,8.18601774,122.16,122.12,11.69018058]
[1766600316669,0.68,122.15,122.12,11.69018058]
[1766600316829,0.68,122.15,122.11,8.18911205]
[1766600317139,0.68,122.15,122.11,23.85911205]
[1766600318130,0.72,122.13,122.1,8.18976557]
[1766600318431,0.72,122.13,122.1,23.14976557]
[1766600319038,2.85175099,122.13,122.09,8.19028599]
[1766600319222,0.72,122.12,122.09,8.86028599]
[1766600319614,0.72,122.12,122.08,23.15114598]
[1766600320013,0.72,122.12,122.08,23.82114598]
[1766600320734,0.72,122.12,122.08,26.67289697]
[1766600323131,0.72,122.12,122.08,23.82114598]
[1766600324537,11.0401168,122.13,122.08,23.15114598]
[1766600325937,8.18732601,122.14,122.08,23.15114598]
[1766600326237,2.85175099,122.13,122.08,26.00289697]
[1766600327848,11.04002907,122.13,122.08,26.00289697]
[1766600329148,11.039077,122.14,122.08,26.00289697]
[1766600329453,2.85175099,122.13,122.08,23.15114598]
[1766600329636,2.85175099,122.13,122.08,26.00289697]
[1766600330359,11.03996748,122.13,122.08,26.00289697]
[1766600330556,11.03996748,122.13,122.08,23.15114598]
[1766600331049,11.03996748,122.13,122.08,26.00289697]
[1766600331635,11.03927823,122.14,122.08,26.00289697]
[1766600332429,0.72,122.13,122.09,0.67]
[1766600332630,0.72,122.12,122.09,8.86058295]
[1766600333048,0.72,122.12,122.09,0.67]
[1766600336350,11.03993496,122.13,122.09,0.67]
[1766600337352,11.75993496,122.13,122.09,0.67]
[1766600341949,30.90431233,122.15,122.09,0.67]
[1766600341950,8.90751457,122.14,122.1,0.67]
[1766600342150,8.18626517,122.16,122.13,0.67]
[1766600342449,0.72,122.17,122.13,0.67]
[1766600342450,22.1949348,122.17,122.13,0.67]
[1766600342639,11.75726184,122.17,122.13,0.67]
[1766600343040,0.72,122.16,122.13,0.67]
[1766600344441,8.90607827,122.16,122.13,0.67]
[1766600346944,0.72,122.16,122.13,0.67]
[1766600350569,19.33260279,122.18,122.14,0.69]
[1766600351459,0.71,122.17,122.14,0.69]
[1766600351669,10.43767296,122.18,122.15,0.69]
[1766600352561,11.14767296,122.18,122.15,0.69]
[1766600354145,0.71,122.17,122.14,0.69]
[1766600355966,0.71,122.15,122.12,0.69]
[1766600357178,0.71,122.16,122.12,0.69]
[1766600357349,3.56175099,122.16,122.12,0.69]
[1766600359171,11.74777986,122.16,122.12,0.69]
[1766600359787,8.89602887,122.16,122.12,0.69]
[1766600365180,8.89602887,122.16,122.13,0.69]
[1766600368974,0.71,122.15,122.13,0.69]
[1766600372992,8.89683193,122.15,122.13,0.69]
[1766600373373,1.82319196,122.14,122.08,47.26486119]
[1766600373572,1.82319196,122.13,122.08,62.20486119]
[1766600374091,10.01129174,122.13,122.08,60.38166923]
[1766600374387,1.82319196,122.13,122.08,60.38166923]
[1766600374595,1.82319196,122.13,122.08,62.20486119]
[1766600374999,10.0112986,122.13,122.08,62.20486119]